bitfinex/quotes_BTCUSD_20250328
["timestamp","ask_amount","ask_price","bid_price","bid_amount"]
[1743171098684,0.02345269,84552.0,84538.0,0.11425764]
[1743171098880,0.0009902,84563.0,84540.0,0.236572]
[1743171099147,0.02352378,84554.0,84544.0,0.236557]
[1743171099380,0.0009902,84563.0,84545.0,0.11425764]
[1743171099557,0.0009902,84563.0,84547.0,0.236552]
[1743171099793,0.0009902,84563.0,84548.0,0.35080764]
[1743171099965,0.0009902,84563.0,84548.0,0.12608464]
[1743171100146,0.0009902,84563.0,84550.0,0.236545]
[1743171100358,0.0009902,84563.0,84551.0,0.11425764]
[1743171100722,0.0009902,84563.0,84554.0,0.011826]
[1743171100921,0.0009902,84563.0,84561.0,0.011825]
[1743171101179,0.0009902,84563.0,84559.0,0.011826]
[1743171101352,0.0003378,84567.0,84566.0,0.011825]
[1743171101559,0.0003378,84567.0,84566.0,1.24981864]
[1743171101859,0.0003378,84567.0,84566.0,0.11425764]
[1743171103047,0.0003378,84567.0,84566.0,0.12025764]
[1743171103550,0.0003378,84567.0,84566.0,0.13208264]
[1743171103750,0.0003378,84567.0,84560.0,0.248342]
[1743171103751,0.0003378,84567.0,84555.0,0.011826]
[1743171104002,0.0003378,84567.0,84566.0,0.006]
[1743171104175,0.0003378,84567.0,84566.0,0.59085064]
[1743171104374,0.0003378,84567.0,84566.0,0.74949064]
[1743171104671,0.0003378,84567.0,84566.0,0.39675864]
[1743171105318,0.0003378,84567.0,84566.0,0.40275864]
[1743171105521,0.0003378,84567.0,84566.0,0.93925964]
[1743171105693,0.0009997,84585.0,84584.0,0.248273]
[1743171105868,0.0003384,84590.0,84589.0,0.248258]
[1743171106053,0.00078322,84590.0,84589.0,4.34979564]
[1743171106239,0.00078322,84590.0,84589.0,0.11425764]
[1743171106439,0.00078322,84590.0,84589.0,0.27261764]
[1743171106649,0.00078322,84590.0,84575.0,0.236476]
[1743171106931,0.00078322,84590.0,84576.0,0.11425764]
[1743171107141,0.01260422,84590.0,84589.0,0.012]
[1743171107511,0.01260422,84590.0,84589.0,0.006]
[1743171107925,0.00078322,84590.0,84589.0,0.006]
[1743171108272,0.00078322,84590.0,84581.0,0.236459]
[1743171108480,0.00078322,84590.0,84581.0,0.36253764]
[1743171108714,0.00078322,84590.0,84589.0,0.006]
[1743171108883,0.00078322,84590.0,84589.0,0.12607864]
[1743171109299,0.08046636,84606.0,84589.0,0.11525764]
[1743171109500,0.08046636,84606.0,84582.0,0.011822]
[1743171109501,0.011821,84593.0,84582.0,0.15788]
[1743171109699,0.236425,84594.0,84582.0,0.15788]
[1743171110059,0.011821,84595.0,84589.0,0.005]
[1743171110060,0.236421,84595.0,84589.0,0.005]
[1743171110265,0.23643,84592.0,84589.0,0.002]
[1743171110473,0.36931966,84600.0,84563.0,0.011825]
[1743171110474,0.011822,84585.0,84563.0,0.011825]
[1743171110673,0.36931966,84600.0,84575.0,0.011823]
[1743171110849,0.011821,84595.0,84576.0,0.248296]
[1743171111028,0.236409,84599.0,84576.0,0.011823]
[1743171111247,0.36931966,84600.0,84582.0,0.004]
[1743171111451,0.02419468,84601.0,84586.0,0.011822]
[1743171111840,0.00876568,84631.0,84603.0,0.011819]
[1743171111841,0.0482,84616.0,84603.0,0.011819]
[1743171112084,0.00113136,84606.0,84596.0,0.248237]
[1743171112312,0.00013336,84606.0,84596.0,0.12607764]
[1743171112560,0.00013336,84606.0,84596.0,0.11425764]
[1743171113015,0.00013336,84606.0,84597.0,0.236413]
[1743171113221,0.00013336,84606.0,84596.0,0.11425764]
[1743171113567,0.00013336,84606.0,84596.0,0.11625764]
[1743171113773,0.00013336,84606.0,84597.0,0.27209764]
[1743171114291,0.00013336,84606.0,84597.0,0.27509764]
[1743171114692,0.00013336,84606.0,84597.0,0.11725764]
[1743171115274,0.00013336,84606.0,84598.0,0.23641]
[1743171115455,0.00013336,84606.0,84598.0,0.35066764]
[1743171115661,0.00013336,84606.0,84598.0,0.11425764]
[1743171115911,0.00013336,84606.0,84599.0,0.236409]
[1743171116151,0.00013336,84606.0,84598.0,0.35066864]
[1743171116583,0.00013336,84606.0,84605.0,0.248211]
[1743171116778,0.00013336,84606.0,84605.0,0.73027464]
[1743171116980,0.00013336,84606.0,84605.0,1.65421864]
[1743171117215,0.00013336,84606.0,84605.0,0.97418764]
[1743171117618,0.00013336,84606.0,84605.0,1.13150764]
[1743171117814,0.00013336,84606.0,84605.0,1.13750764]
[1743171118236,0.00013336,84606.0,84605.0,0.81167464]
[1743171118441,0.000338,84614.0,84605.0,0.81167464]
[1743171118442,0.000338,84614.0,84608.0,0.248203]
[1743171118663,0.000338,84614.0,84608.0,0.66246064]
[1743171118864,0.000338,84614.0,84608.0,4.64974064]
[1743171119607,4e-07,84609.0,84608.0,4.67474064]
[1743171119835,4e-07,84609.0,84608.0,0.69246064]
[1743171120054,4e-07,84609.0,84608.0,0.70700149]
[1743171120228,4e-07,84609.0,84608.0,0.66846064]
[1743171120443,4e-07,84609.0,84608.0,0.27705764]
[1743171120665,4e-07,84609.0,84608.0,0.51344164]
[1743171120865,4e-07,84609.0,84608.0,0.52526064]
[1743171121277,4e-07,84609.0,84608.0,0.53126064]
[1743171121630,0.12607704,84609.0,84608.0,0.006]
[1743171121759,0.55337704,84609.0,84608.0,0.006]
[1743171121962,0.68161055,84609.0,84608.0,0.012]
[1743171122162,0.60649317,84609.0,84608.0,0.006]
[1743171122405,0.375567,84586.0,84585.0,0.0001689]
[1743171122607,0.375567,84586.0,84585.0,9e-07]
[1743171122608,0.78982464,84586.0,84585.0,9e-07]
[1743171122816,0.78982464,84586.0,84585.0,0.00013426]
[1743171122817,0.80436549,84586.0,84585.0,0.00013426]
[1743171123262,0.78982464,84586.0,84585.0,0.00013426]
[1743171123707,0.78982464,84586.0,84522.0,0.0141792]
[1743171123708,0.67035613,84586.0,84522.0,0.0141792]
[1743171123936,0.67035613,84586.0,84506.0,0.1032499]
[1743171123937,0.248407,84538.0,84506.0,0.1032499]
[1743171124121,0.36266464,84538.0,84508.0,0.236662]
[1743171124320,0.66266464,84538.0,84506.0,0.1032499]
[1743171124698,0.66266464,84538.0,84507.0,0.011833]
[1743171124699,0.41425764,84538.0,84507.0,0.011833]
[1743171124901,0.66266464,84538.0,84515.0,0.011832]
[1743171125076,0.66266464,84538.0,84512.0,0.011832]
[1743171125295,0.66266464,84538.0,84537.0,0.00061372]
[1743171125504,0.011828,84538.0,84537.0,0.00061372]
[1743171125812,0.1289384,84538.0,84537.0,0.00061372]
[1743171126195,0.12608564,84538.0,84537.0,0.00061372]
[1743171126395,0.52775515,84538.0,84537.0,7.2e-07]
[1743171126604,0.548499,84507.0,84506.0,0.1032499]
[1743171126878,0.66275664,84507.0,84506.0,0.10338319]
[1743171127404,0.36275664,84507.0,84506.0,0.10338319]
[1743171127603,0.11425764,84507.0,84506.0,0.10338319]
[1743171127833,0.248483,84513.0,84506.0,0.10338319]
[1743171127834,0.011831,84522.0,84506.0,0.00113329]
[1743171128035,0.011832,84514.0,84506.0,0.00113329]
[1743171128525,0.011831,84517.0,84506.0,0.00113329]
[1743171128747,0.011831,84518.0,84506.0,0.00113329]
[1743171129087,0.548499,84507.0,84506.0,2.9e-07]
[1743171129287,0.236681,84502.0,84500.0,0.0001689]
[1743171129588,0.236681,84502.0,84500.0,0.00030202]
[1743171129787,0.011834,84501.0,84500.0,0.00030202]
[1743171131167,0.248516,84502.0,84500.0,0.00430202]
[1743171131366,0.248501,84507.0,84500.0,0.00430202]
[1743171131603,0.011833,84504.0,84500.0,0.00430202]
[1743171131808,0.248508,84504.0,84500.0,0.00430202]
[1743171131990,0.011833,84503.0,84500.0,0.00430202]
[1743171132193,0.23668,84502.0,84500.0,0.00430202]
[1743171132438,0.011834,84501.0,84500.0,0.00230202]
[1743171132835,0.011834,84501.0,84500.0,0.00130202]
[1743171133049,0.011832,84516.0,84500.0,0.00130202]
[1743171133253,0.248492,84510.0,84500.0,0.00230202]
[1743171133424,0.011832,84510.0,84500.0,0.00430202]
[1743171133625,0.236644,84515.0,84500.0,0.00230202]
[1743171133851,0.248481,84513.0,84500.0,0.00030202]
[1743171134106,0.011832,84513.0,84501.0,0.11425764]
[1743171134309,0.011833,84509.0,84500.0,0.00430202]
[1743171134524,0.248517,84501.0,84500.0,0.00030202]
[1743171134757,0.36277464,84501.0,84500.0,0.00030202]
[1743171135219,0.011834,84501.0,84500.0,0.00030202]
[1743171135441,0.1289444,84501.0,84500.0,0.00030202]
[1743171135668,0.12609164,84501.0,84500.0,0.00030202]
[1743171136342,0.12609164,84501.0,84495.0,4e-08]
[1743171136343,0.548531,84496.0,84495.0,4e-08]
[1743171136613,0.66278864,84496.0,84495.0,4e-08]
[1743171137719,0.41425764,84496.0,84495.0,4e-08]
[1743171138129,0.42609164,84496.0,84495.0,4e-08]
[1743171138332,0.42709164,84496.0,84495.0,4e-08]
[1743171138538,0.41525764,84496.0,84495.0,4e-08]
[1743171138758,0.11525764,84496.0,84495.0,4e-08]
[1743171138961,0.41525764,84496.0,84495.0,4e-08]
[1743171139174,0.42709164,84496.0,84495.0,4e-08]
[1743171139477,0.002,84496.0,84495.0,4e-08]
[1743171139699,0.001,84496.0,84495.0,4e-08]
[1743171139873,0.07563307,84501.0,84495.0,4e-08]
[1743171140051,0.18989071,84501.0,84495.0,0.00100004]
[1743171140263,0.001,84496.0,84495.0,4e-08]
[1743171140756,0.07563307,84501.0,84495.0,4e-08]
[1743171140964,0.00013307,84501.0,84498.0,0.011834]
[1743171141144,0.00013307,84501.0,84495.0,0.00100004]
[1743171141347,0.00013307,84501.0,84495.0,0.001]
[1743171141919,0.624031,84496.0,84495.0,0.001]
[1743171142090,0.73828864,84496.0,84495.0,0.001]
[1743171142463,0.248546,84491.0,84471.0,0.2537732]
[1743171142573,0.248546,84491.0,84471.0,0.2537722]
[1743171142778,0.248546,84491.0,84471.0,0.0170072]
[1743171142987,0.248546,84491.0,84471.0,0.0051692]
[1743171143250,0.43828864,84496.0,84480.0,0.011837]
[1743171143251,0.0755,84496.0,84480.0,0.011837]
[1743171143458,0.236709,84493.0,84472.0,0.2486]
[1743171143660,0.248544,84492.0,84471.0,0.0051692]
[1743171143832,0.248544,84492.0,84490.0,0.0091161]
[1743171144162,0.011835,84491.0,84490.0,0.0081161]
[1743171144407,0.12609264,84491.0,84490.0,0.0101161]
[1743171145082,0.12609264,84491.0,84490.0,0.0111161]
[1743171145598,0.12609264,84491.0,84471.0,0.0051692]
[1743171145599,0.548582,84479.0,84471.0,0.0051692]
[1743171145843,0.66283964,84479.0,84471.0,0.0051692]
[1743171147263,0.248582,84479.0,84471.0,0.0051692]
[1743171147490,0.36283964,84479.0,84471.0,0.0051692]
[1743171150387,0.66283964,84479.0,84471.0,0.0051692]
[1743171151438,0.74393964,84479.0,84471.0,0.0051692]
[1743171151709,1.16363964,84479.0,84471.0,0.0051692]
[1743171152129,1.17818049,84479.0,84471.0,0.0051692]
[1743171152353,1.18018049,84479.0,84471.0,0.0051692]
[1743171152555,1.29443813,84479.0,84471.0,0.0051692]
[1743171152921,1.30337235,84479.0,84471.0,0.0051692]
[1743171153067,1.18911471,84479.0,84471.0,0.0051692]
[1743171153279,1.34367471,84479.0,84471.0,0.0051692]
[1743171153639,1.18911471,84479.0,84471.0,0.0051692]
[1743171153902,1.34359471,84479.0,84471.0,0.0051692]
[1743171154108,1.35813556,84479.0,84471.0,0.0051692]
[1743171154326,1.35805556,84479.0,84471.0,0.0051692]
[1743171156211,1.37087856,84479.0,84471.0,0.0051692]
[1743171157924,1.37087856,84479.0,84478.0,0.0028232]
[1743171159194,1.20193771,84479.0,84478.0,0.0028232]
[1743171159317,1.34263471,84479.0,84478.0,0.0028232]
[1743171159783,1.04776371,84479.0,84478.0,0.0028232]
[1743171159907,0.77485707,84479.0,84478.0,0.0028232]
[1743171160451,0.88911471,84479.0,84478.0,0.0028232]
[1743171161071,0.88711471,84479.0,84478.0,0.0028232]
[1743171161290,0.88911471,84479.0,84478.0,0.0028232]
[1743171161689,0.02747507,84479.0,84478.0,0.0028232]
[1743171161919,0.27405707,84479.0,84478.0,0.0029923]
[1743171162120,0.02347507,84479.0,84478.0,0.0029923]
[1743171162325,0.26222007,84479.0,84478.0,0.0029923]
[1743171162553,0.27405707,84479.0,84478.0,0.0029923]
[1743171162765,0.02547507,84479.0,84478.0,0.0029923]
[1743171162970,0.27205707,84479.0,84478.0,0.0029923]
[1743171163555,0.27405707,84479.0,84478.0,0.0029923]
[1743171164295,0.02547507,84479.0,84478.0,0.0029923]
[1743171164515,0.02347507,84479.0,84478.0,0.0029923]
[1743171164669,0.26022007,84479.0,84478.0,0.0029923]
[1743171164888,0.27205707,84479.0,84478.0,0.0029923]
[1743171165499,0.77205707,84479.0,84478.0,0.0029923]
[1743171168694,1.38267235,84479.0,84478.0,0.0029923]
[1743171169224,1.26841471,84479.0,84478.0,0.0029923]
[1743171170455,1.27041471,84479.0,84478.0,0.0029923]
[1743171172128,0.97041471,84479.0,84478.0,0.0029923]
[1743171173094,0.77405707,84479.0,84478.0,0.0029923]
[1743171173339,1.34063471,84479.0,84478.0,0.0029923]
[1743171173587,1.4694332,84479.0,84478.0,0.0029923]
[1743171174288,1.33963471,84479.0,84478.0,3e-07]
[1743171174574,1.35417556,84479.0,84478.0,3e-07]
[1743171174804,0.548608,84470.0,84469.0,9.3e-07]
[1743171175045,0.66286564,84470.0,84469.0,9.3e-07]
[1743171175286,0.548614,84468.0,84467.0,9.3e-07]
[1743171175525,0.54862,84466.0,84465.0,2.3e-07]
[1743171175737,0.66287764,84466.0,84465.0,2.3e-07]
[1743171176287,0.66301064,84466.0,84465.0,2.3e-07]
[1743171176738,0.87199734,84466.0,84465.0,2.3e-07]
[1743171177690,0.87299734,84466.0,84465.0,2.3e-07]
[1743171180463,0.87299734,84466.0,84420.0,0.0488]
[1743171180464,0.011841,84451.0,84447.0,7.3e-07]
[1743171180665,0.248699,84439.0,84438.0,0.30013033]
[1743171180846,0.236857,84439.0,84438.0,0.30013033]
[1743171181052,0.236832,84448.0,84438.0,0.30013033]
[1743171181255,0.011842,84441.0,84438.0,0.30013033]
[1743171181453,0.22771835,84460.0,84451.0,0.011841]
[1743171181662,0.22771835,84460.0,84439.0,0.116626]
[1743171181663,0.001,84451.0,84439.0,0.11425764]
[1743171181889,0.001,84451.0,84438.0,0.34673033]
[1743171181890,0.22771835,84450.0,84438.0,0.59543233]
[1743171182146,0.22771835,84450.0,84439.0,0.011842]
[1743171182322,0.22771835,84450.0,84440.0,0.011842]
[1743171182490,0.00013295,84455.0,84443.0,0.011842]
[1743171182691,0.00013295,84455.0,84449.0,0.011841]
[1743171182987,0.00013295,84455.0,84454.0,0.248655]
[1743171183193,0.00013295,84455.0,84454.0,2.28615964]
[1743171183330,0.00013295,84455.0,84454.0,1.06058064]
[1743171183935,0.5013193,84479.0,84474.0,0.011837]
[1743171184163,0.5013193,84479.0,84476.0,0.236752]
[1743171184366,0.5003382,84479.0,84477.0,0.35100764]
[1743171184514,0.5003382,84479.0,84477.0,0.11425764]
[1743171184722,0.5003382,84479.0,84477.0,0.12781675]
[1743171184929,0.5003382,84479.0,84478.0,0.011837]
[1743171185129,0.5003382,84479.0,84478.0,0.12609464]
[1743171185992,0.5013382,84479.0,84478.0,0.11425764]
[1743171186144,0.5013382,84479.0,84478.0,0.12609464]
[1743171186344,0.5003382,84479.0,84478.0,0.11425764]
[1743171186576,0.5003382,84479.0,84466.0,0.046]
[1743171186779,0.5003382,84479.0,84476.0,0.236751]
[1743171186780,0.5013382,84479.0,84476.0,0.236751]
[1743171186981,0.5013382,84479.0,84476.0,0.11425764]
[1743171187345,0.5023382,84479.0,84466.0,0.046]
[1743171187576,0.236771,84470.0,84455.0,0.01184]
[1743171187805,0.236788,84464.0,84456.0,0.11425764]
[1743171188032,0.248652,84455.0,84454.0,0.00044427]
[1743171188446,0.236812,84455.0,84454.0,0.00044427]
[1743171188864,0.248652,84455.0,84454.0,0.00044427]
[1743171189072,0.26250884,84455.0,84454.0,0.00044427]
[1743171189275,0.37676648,84455.0,84454.0,0.00044427]
[1743171191717,0.248652,84455.0,84454.0,0.00044427]
[1743171192051,0.26242097,84455.0,84454.0,0.00044427]
[1743171192720,0.248652,84455.0,84454.0,0.00044427]
[1743171194519,0.02429041,84457.0,84454.0,0.00044427]
[1743171195334,0.236812,84455.0,84454.0,0.00044427]
[1743171195743,0.248652,84455.0,84454.0,0.00044427]
[1743171196363,0.26109941,84457.0,84454.0,0.00044427]
[1743171196566,0.02429041,84457.0,84454.0,0.00044427]
[1743171197204,0.23681,84456.0,84454.0,0.00044427]
[1743171197592,0.27293741,84457.0,84454.0,0.00044427]
[1743171197749,0.23681,84456.0,84454.0,0.00044427]
[1743171197947,0.02429041,84457.0,84454.0,0.00044427]
[1743171198147,0.248651,84456.0,84454.0,0.00044427]
[1743171198314,0.26109741,84457.0,84454.0,0.00044427]
[1743171198513,0.23681,84456.0,84454.0,0.00144427]
[1743171198724,0.011841,84452.0,84440.0,0.23628557]
[1743171198943,0.011841,84449.0,84438.0,0.30013033]
[1743171199151,0.02507371,84457.0,84438.0,0.30013033]
[1743171199152,0.011842,84444.0,84438.0,0.41438797]
[1743171199347,0.236857,84439.0,84438.0,0.30013033]
[1743171199549,0.248699,84439.0,84438.0,0.30013033]
[1743171199971,0.011842,84444.0,84438.0,0.30013033]
[1743171199972,0.248685,84444.0,84438.0,0.30013033]
[1743171200166,0.236832,84448.0,84439.0,0.11425764]
[1743171200372,0.248665,84451.0,84439.0,0.11425764]
[1743171200615,0.236826,84450.0,84439.0,0.35111464]
[1743171200968,0.0007833,84457.0,84445.0,0.011842]
[1743171201190,0.0007833,84457.0,84446.0,0.36293564]
[1743171201393,0.01184,84456.0,84454.0,0.001]
[1743171201595,0.248652,84455.0,84454.0,0.001]
[1743171202155,0.236846,84443.0,84438.0,0.30013033]
[1743171202333,0.011841,84446.0,84438.0,0.30013033]
[1743171202550,0.0128232,84776.0,84438.0,0.30013033]
[1743171202551,0.02349929,84455.0,84446.0,0.001]
[1743171202751,0.02349929,84455.0,84447.0,0.12609864]
[1743171202976,0.02449559,84455.0,84447.0,0.35109064]
[1743171203209,0.02349929,84455.0,84447.0,0.11425764]
[1743171203355,0.01184,84454.0,84447.0,0.11425764]
[1743171203555,0.236818,84453.0,84447.0,0.11425764]
[1743171203761,0.248656,84454.0,84447.0,0.11425764]
[1743171203958,0.02349929,84455.0,84447.0,0.11425764]
[1743171204161,0.0007833,84457.0,84455.0,0.01184]
[1743171204523,0.0007833,84457.0,84456.0,0.36290664]
[1743171204845,0.0007833,84457.0,84456.0,1.07993664]
[1743171205691,0.0007833,84457.0,84456.0,0.92845664]
[1743171205880,0.248649,84456.0,84455.0,0.001]
[1743171207805,0.011842,84441.0,84430.0,0.00040069]
[1743171208011,0.011842,84444.0,84430.0,0.01224469]
[1743171208216,0.236851,84441.0,84431.0,0.24872]
[1743171208341,0.011841,84446.0,84431.0,0.24872]
[1743171208342,0.23684,84445.0,84433.0,0.011843]
[1743171208548,0.248676,84447.0,84439.0,0.11425764]
[1743171208748,0.236854,84440.0,84439.0,0.11425764]
[1743171208951,0.248696,84440.0,84439.0,0.11425764]
[1743171209135,0.248699,84439.0,84430.0,0.00040069]
[1743171209338,0.248699,84439.0,84438.0,0.30313033]
[1743171209538,0.236857,84439.0,84438.0,0.30313033]
[1743171209746,0.248699,84439.0,84438.0,0.30313033]
[1743171209952,0.248699,84439.0,84438.0,0.30013033]
[1743171211436,0.248699,84439.0,84438.0,0.30613033]
[1743171211838,0.248699,84439.0,84438.0,0.30313033]
[1743171212289,0.248699,84439.0,84438.0,0.30613033]
[1743171212695,0.248699,84439.0,84438.0,0.30313033]
[1743171212903,0.248699,84439.0,84438.0,0.30013033]
[1743171213109,0.248699,84439.0,84438.0,0.30113033]
[1743171214281,0.248699,84439.0,84438.0,0.30213033]
[1743171214481,0.27243534,84439.0,84438.0,0.30213033]
[1743171214725,0.27243534,84439.0,84438.0,0.30013033]
[1743171215308,0.26929691,84439.0,84438.0,0.30003385]
[1743171217105,0.02373634,84439.0,84438.0,0.30003385]
[1743171217326,0.02373634,84439.0,84438.0,0.41429149]
[1743171217576,0.05,84450.0,84438.0,0.42613449]
[1743171217832,0.05,84450.0,84445.0,0.23684]
[1743171218069,0.05,84450.0,84448.0,0.236831]
[1743171218298,0.05,84450.0,84449.0,0.35108664]
[1743171218976,0.05,84450.0,84446.0,0.15092]
[1743171219187,0.05,84450.0,84449.0,0.11425764]
[1743171219871,0.05,84450.0,84449.0,0.35108664]
[1743171220019,0.05,84450.0,84449.0,0.36292764]
[1743171220634,0.05,84450.0,84449.0,2.34157164]
[1743171220798,0.05,84450.0,84449.0,2.36810137]
[1743171220996,0.05,84450.0,84449.0,2.37110137]
[1743171221500,0.05,84450.0,84449.0,2.36810137]
[1743171221724,0.05,84450.0,84449.0,2.22802901]
[1743171221919,0.051,84450.0,84449.0,2.23102901]
[1743171222120,0.052,84450.0,84449.0,2.53402901]
[1743171222412,0.051,84450.0,84449.0,2.53102901]
[1743171222595,0.05,84450.0,84449.0,2.54756986]
[1743171222840,0.051,84450.0,84449.0,2.57556986]
[1743171224028,0.052,84450.0,84449.0,3.07436986]
[1743171224237,0.002338,84450.0,84449.0,3.21326986]
[1743171225034,0.002338,84450.0,84449.0,3.11326986]
[1743171225213,0.002338,84450.0,84449.0,2.07712237]
[1743171225392,0.002338,84450.0,84449.0,2.25248237]
[1743171225593,0.002338,84450.0,84449.0,1.94315137]
[1743171225797,0.002338,84450.0,84449.0,2.09355137]
[1743171226095,0.002338,84450.0,84449.0,1.94315137]
[1743171226301,0.002338,84450.0,84449.0,1.59650137]
[1743171226496,0.002338,84450.0,84449.0,1.61604222]
[1743171226908,0.002338,84450.0,84449.0,1.59650137]
[1743171227793,0.002338,84450.0,84449.0,1.44614137]
[1743171228160,0.002338,84450.0,84449.0,1.59618137]
[1743171229132,0.002338,84450.0,84449.0,1.61572222]
[1743171230262,0.002338,84450.0,84449.0,1.61072222]
[1743171230515,0.002338,84450.0,84449.0,1.61572222]
[1743171230756,0.002338,84450.0,84449.0,1.44614137]
[1743171230996,0.002338,84450.0,84449.0,1.49509237]
[1743171231256,0.002338,84450.0,84449.0,0.37888237]
[1743171231499,0.002338,84450.0,84449.0,0.54213737]
[1743171231905,0.001338,84450.0,84449.0,0.53913737]
[1743171232082,0.000338,84450.0,84449.0,0.53613737]
[1743171232309,0.001338,84450.0,84449.0,0.53913737]
[1743171232482,0.002338,84450.0,84449.0,2.65000137]
[1743171233335,0.002338,84450.0,84449.0,2.95000137]
[1743171233513,0.002338,84450.0,84449.0,2.96954222]
[1743171233747,0.002338,84450.0,84449.0,1.46514837]
[1743171233947,0.002338,84450.0,84449.0,1.44032837]
[1743171234146,0.002338,84450.0,84449.0,1.46514837]
[1743171234330,0.002338,84450.0,84449.0,1.31562837]
[1743171234529,0.002338,84450.0,84449.0,1.23591937]
[1743171234666,0.002338,84450.0,84449.0,1.31805937]
[1743171234868,0.002338,84450.0,84449.0,1.22461237]
[1743171235083,0.002338,84450.0,84449.0,1.07517237]
[1743171235267,0.002338,84450.0,84449.0,1.13665137]
[1743171235849,0.002338,84450.0,84449.0,0.69245737]
[1743171235982,0.002338,84450.0,84449.0,1.84850437]
[1743171236430,0.002338,84450.0,84449.0,1.69930437]
[1743171236851,0.002338,84450.0,84449.0,1.46363337]
[1743171237385,0.002338,84450.0,84449.0,1.31431337]
[1743171237521,0.002338,84450.0,84449.0,1.17673737]
[1743171238114,0.002338,84450.0,84449.0,1.17690627]
[1743171238696,0.002338,84450.0,84449.0,1.26765327]
[1743171239651,0.002338,84450.0,84449.0,0.79134927]
[1743171239894,0.002338,84450.0,84449.0,0.14395627]
[1743171240232,0.002338,84450.0,84449.0,0.0061689]
[1743171240431,0.002338,84450.0,84449.0,0.36909654]
[1743171240636,0.002338,84450.0,84449.0,0.66909654]
[1743171240841,0.002338,84450.0,84449.0,3.94010254]
[1743171240993,0.002338,84450.0,84449.0,1.78191254]
[1743171241178,0.000338,84450.0,84449.0,1.77591254]
[1743171241601,0.000338,84450.0,84449.0,2.51905339]
[1743171242007,0.000338,84450.0,84449.0,2.51605339]
[1743171242205,0.0007833,84457.0,84456.0,0.543169]
[1743171242405,0.0007833,84457.0,84456.0,4.70081549]
[1743171242660,0.0003382,84479.0,84478.0,0.248585]
[1743171242835,0.0003382,84479.0,84478.0,3.57062464]
[1743171243234,0.0003382,84479.0,84478.0,3.05427664]
[1743171243433,0.0003382,84479.0,84478.0,0.98427964]
[1743171243660,0.0003382,84479.0,84478.0,0.51136264]
[1743171244071,0.0003382,84479.0,84478.0,0.36284264]
[1743171244267,0.0003382,84479.0,84478.0,0.51132264]
[1743171244472,0.0013382,84479.0,84478.0,2.53609664]
[1743171245032,0.0013382,84479.0,84478.0,1.79513364]
[1743171245255,0.0013382,84479.0,84478.0,0.51616264]
[1743171245451,0.0013382,84479.0,84478.0,0.70434956]
[1743171245656,0.0013382,84479.0,84478.0,0.71034956]
[1743171246725,0.0013382,84479.0,84478.0,0.71030956]
[1743171247484,0.0013382,84479.0,84478.0,0.56202956]
[1743171247688,0.0013382,84479.0,84478.0,0.54552456]
[1743171248339,0.0013382,84479.0,84478.0,2.74476356]
[1743171248566,0.0013382,84479.0,84478.0,2.59136456]
[1743171248767,0.0013382,84479.0,84478.0,1.54954456]
[1743171248993,0.0013382,84479.0,84478.0,1.84954456]
[1743171249201,0.0013382,84479.0,84478.0,1.70138456]
[1743171249404,0.0013382,84479.0,84478.0,1.36069256]
[1743171249614,0.0013382,84479.0,84478.0,0.66418756]
[1743171249823,0.2499202,84479.0,84478.0,0.011]
[1743171250251,0.2974202,84479.0,84478.0,0.011]
[1743171250566,0.2855832,84479.0,84478.0,0.011]
[1743171250771,0.0478382,84479.0,84478.0,0.017837]
[1743171250974,0.0003382,84479.0,84478.0,1.71407095]
[1743171251183,0.0003382,84479.0,84478.0,1.86902364]
[1743171251384,0.0003382,84479.0,84478.0,2.18356449]
[1743171251591,2e-07,84479.0,84478.0,2.18356449]
[1743171251855,0.0003382,84489.0,84488.0,0.548556]
[1743171252111,0.00047162,84489.0,84488.0,0.66281364]
[1743171252560,0.00047162,84489.0,84488.0,2.87800964]
[1743171252813,0.00047162,84489.0,84488.0,2.22357664]
[1743171253041,0.00047162,84489.0,84488.0,1.44529664]
[1743171253510,0.00047162,84489.0,84488.0,1.09395664]
[1743171253767,0.23673,84485.0,84472.0,0.56324]
[1743171254043,0.011836,84482.0,84472.0,0.011838]
[1743171254282,0.0479,84484.0,84480.0,0.011837]
[1743171254526,0.0479,84484.0,84480.0,0.248577]
[1743171254736,0.0479,84484.0,84481.0,0.236739]
[1743171255061,0.0479,84484.0,84482.0,0.236736]
[1743171256058,0.0479,84484.0,84478.0,0.248583]
[1743171256274,0.0479,84484.0,84481.0,0.004]
[1743171256482,0.236736,84482.0,84481.0,0.004]
[1743171256681,0.248572,84482.0,84481.0,0.004]
[1743171257312,0.330172,84482.0,84481.0,0.004]
[1743171257665,0.236757,84475.0,84468.0,0.236774]
[1743171257912,0.236759,84474.0,84468.0,0.236774]
[1743171258123,0.236764,84472.0,84465.0,0.236781]
[1743171258445,0.236767,84471.0,84461.0,0.236795]
[1743171258672,0.011838,84469.0,84459.0,0.01184]
[1743171258874,0.236781,84467.0,84459.0,0.36289764]
[1743171259089,0.236793,84462.0,84459.0,0.11425764]
[1743171259255,0.011838,84467.0,84459.0,0.11425764]
[1743171259495,0.23679,84463.0,84459.0,0.11425764]
[1743171259700,0.011839,84464.0,84459.0,0.11425764]
[1743171259701,0.011838,84467.0,84459.0,0.11425764]
[1743171259873,0.011838,84469.0,84459.0,0.35105864]
[1743171260092,0.0009971,84476.0,84472.0,0.236764]
[1743171260302,0.0009971,84476.0,84475.0,0.236756]
[1743171260530,0.1264,84477.0,84443.0,0.025]
[1743171260702,0.248644,84458.0,84457.0,9e-07]
[1743171260906,0.49130164,84458.0,84457.0,9e-07]
[1743171261778,0.377044,84458.0,84457.0,9e-07]
[1743171262193,0.378044,84458.0,84457.0,9e-07]
[1743171262782,0.379044,84458.0,84457.0,9e-07]
[1743171263546,0.1304,84458.0,84457.0,9e-07]
[1743171263907,0.002,84458.0,84457.0,0.27457854]
[1743171264107,0.002,84458.0,84457.0,3.19292154]
[1743171264383,0.002,84458.0,84457.0,3.07117854]
[1743171264636,0.236749,84478.0,84468.0,0.248612]
[1743171264841,0.02362218,84476.0,84473.0,0.2486]
[1743171265049,0.02362218,84476.0,84475.0,0.248593]
[1743171265472,0.02362218,84476.0,84475.0,0.396913]
[1743171265696,0.0003378,84479.0,84475.0,0.396913]
[1743171265697,0.0003378,84479.0,84478.0,0.248585]
[1743171265904,0.0003382,84489.0,84482.0,0.3]
[1743171266084,5e-07,84490.0,84489.0,0.011835]
[1743171266324,0.0494,84512.0,84489.0,0.011835]